fUST/lending_fUST_20260616
["ID","MTS","AMOUNT","RATE_DAILY","PERIOD"]
[425219855,1781621441000,-500.0,0.00020173,2]
[425219847,1781621441000,-500.0,0.00019917,2]
[425219851,1781621441000,-500.0,0.00019917,2]
[425219860,1781621441000,-500.0,0.00020173,2]
[425219944,1781621442000,-555.0,0.00020738,2]
[425219940,1781621442000,-234.45,0.00020721,2]
[425219943,1781621442000,-773.9,0.00020738,2]
[425219937,1781621442000,-500.0,0.00020721,2]
[425219928,1781621442000,-500.0,0.00020721,2]
[425219936,1781621442000,-500.0,0.00020721,2]
[425219926,1781621442000,-500.0,0.00020465,2]
[425219929,1781621442000,-500.0,0.00020721,2]
[425219931,1781621442000,-500.0,0.00020721,2]
[425219939,1781621442000,-500.0,0.00020721,2]
[425219927,1781621442000,-632.76,0.00020465,2]
[425219938,1781621442000,-559.48,0.00020721,2]
[425219941,1781621442000,-500.0,0.00020721,2]
[425219956,1781621442000,-1212.29809184,0.00020995,7]
[425219946,1781621442000,-500.0,0.00020738,2]
[425219945,1781621442000,-500.0,0.00020738,2]
[425219948,1781621442000,-500.0,0.00020739,2]
[425219957,1781621442000,-500.0,0.00020995,2]
[425219950,1781621442000,-3591.93,0.00020739,2]
[425219949,1781621442000,-500.0,0.00020739,2]
[425219958,1781621442000,-500.0,0.00020995,2]
[425219947,1781621442000,-500.0,0.00020738,2]
[425219951,1781621442000,-500.0,0.00020739,2]
[425219952,1781621442000,-632.76,0.00020739,2]
[425219955,1781621442000,-222.82422297,0.00020951,2]
[425219934,1781621442000,-500.0,0.00020721,2]
[425219942,1781621442000,-500.0,0.00020737,2]
[425219935,1781621442000,-500.0,0.00020721,2]
[425219953,1781621442000,-298.41,0.00020784,3]
[425219925,1781621442000,-3591.93,0.00020465,2]
[425219908,1781621442000,-500.0,0.00020447,2]
[425219900,1781621442000,-500.0,0.00020447,2]
[425219905,1781621442000,-500.0,0.00020447,2]
[425219907,1781621442000,-500.0,0.00020447,2]
[425219902,1781621442000,-500.0,0.00020447,2]
[425219910,1781621442000,-500.0,0.00020447,2]
[425219903,1781621442000,-500.0,0.00020447,2]
[425219906,1781621442000,-500.880775,0.00020447,2]
[425219904,1781621442000,-500.0,0.00020447,2]
[425219909,1781621442000,-500.0,0.00020447,2]
[425219901,1781621442000,-500.0,0.00020447,2]
[425219912,1781621442000,-500.0,0.00020447,2]
[425219922,1781621442000,-500.0,0.00020465,2]
[425219923,1781621442000,-500.0,0.00020465,2]
[425219911,1781621442000,-559.48,0.00020447,2]
[425219913,1781621442000,-500.0,0.00020447,2]
[425219914,1781621442000,-500.0,0.00020447,2]
[425219924,1781621442000,-500.0,0.00020465,2]
[425219915,1781621442000,-500.0,0.00020463,2]
[425219918,1781621442000,-467.33826461,0.00020464,2]
[425219916,1781621442000,-773.9,0.00020464,2]
[425219919,1781621442000,-500.0,0.00020464,2]
[425219920,1781621442000,-500.0,0.00020464,2]
[425219921,1781621442000,-500.0,0.00020464,2]
[425219917,1781621442000,-500.0,0.00020464,2]
[425219933,1781621442000,-500.0,0.00020721,2]
[425219930,1781621442000,-500.0,0.00020721,2]
[425219932,1781621442000,-467.8,0.00020721,2]
[425219954,1781621442000,-29755.622765,0.00020874,2]
[425220013,1781621442000,-173.85780205,0.00021413,2]
[425219961,1781621442000,-500.0,0.00020995,2]
[425219987,1781621442000,-500.0,0.00021269,2]
[425219994,1781621442000,-207.62,0.00021269,2]
[425219993,1781621442000,-500.0,0.00021269,2]
[425219959,1781621442000,-500.0,0.00020995,2]
[425219995,1781621442000,-773.9,0.00021286,2]
[425219998,1781621442000,-500.0,0.00021286,2]
[425219999,1781621442000,-500.0,0.00021287,2]
[425220008,1781621442000,-209.476,0.00021379,2]
[425220007,1781621442000,-151.0,0.00021379,2]
[425220001,1781621442000,-500.0,0.00021287,2]
[425220000,1781621442000,-3591.93,0.00021287,2]
[425219997,1781621442000,-500.0,0.00021286,2]
[425220006,1781621442000,-554.29575923,0.00021379,2]
[425220003,1781621442000,-10000.0,0.00021371,2]
[425220002,1781621442000,-632.76,0.00021287,2]
[425220004,1781621442000,-500.0,0.00021379,2]
[425220005,1781621442000,-500.0,0.00021379,2]
[425220009,1781621442000,-154.49,0.00021379,3]
[425220011,1781621442000,-179.77708599,0.00021413,2]
[425220012,1781621442000,-161.91391315,0.00021413,2]
[425220010,1781621442000,-162.50451571,0.00021412,2]
[425220017,1781621442000,-193.49748139,0.00021413,2]
[425220014,1781621442000,-155.07523571,0.00021413,2]
[425220015,1781621442000,-185.83933292,0.00021413,2]
[425220016,1781621442000,-176.55845809,0.00021413,2]
[425220018,1781621442000,-160.5431152,0.00021413,2]
[425220019,1781621442000,-1609.58964596,0.00021413,2]
[425219991,1781621442000,-500.0,0.00021269,2]
[425219990,1781621442000,-500.0,0.00021269,2]
[425219996,1781621442000,-500.0,0.00021286,2]
[425219986,1781621442000,-500.0,0.00021269,2]
[425219964,1781621442000,-500.0,0.00020995,2]
[425219960,1781621442000,-500.0,0.00020995,2]
[425219962,1781621442000,-500.0,0.00020995,2]
[425219963,1781621442000,-500.0,0.00020995,2]
[425219969,1781621442000,-2078.0,0.00021,2]
[425219970,1781621442000,-4062.92919377,0.00021,2]
[425219968,1781621442000,-500.0,0.00020995,2]
[425219965,1781621442000,-500.0,0.00020995,2]
[425219988,1781621442000,-500.0,0.00021269,2]
[425219967,1781621442000,-500.0,0.00020995,2]
[425219971,1781621442000,-773.9,0.00021012,2]
[425219973,1781621442000,-500.0,0.00021012,2]
[425219983,1781621442000,-500.0,0.00021269,2]
[425219966,1781621442000,-559.48,0.00020995,2]
[425219974,1781621442000,-500.0,0.00021012,2]
[425219972,1781621442000,-500.0,0.00021012,2]
[425219989,1781621442000,-500.0,0.00021269,2]
[425219992,1781621442000,-559.48,0.00021269,2]
[425219984,1781621442000,-500.0,0.00021269,2]
[425219977,1781621442000,-3591.93,0.00021013,2]
[425219982,1781621442000,-184.05250396,0.00021158,2]
[425219985,1781621442000,-500.0,0.00021269,2]
[425219979,1781621442000,-632.76,0.00021013,2]
[425219976,1781621442000,-455.73,0.00021013,2]
[425219975,1781621442000,-500.0,0.00021013,2]
[425219980,1781621442000,-151.0,0.000211,3]
[425219981,1781621442000,-797.0,0.000211,2]
[425219978,1781621442000,-500.0,0.00021013,2]
[425220030,1781621443000,-355.93663145,0.00021413,2]
[425220028,1781621443000,-336.87317675,0.00021413,2]
[425220027,1781621443000,-153.22249926,0.00021413,2]
[425220025,1781621443000,-167.69684239,0.00021413,2]
[425220023,1781621443000,-162.74608573,0.00021413,2]
[425220024,1781621443000,-150.53590465,0.00021413,2]
[425220022,1781621443000,-175.89430738,0.00021413,2]
[425220021,1781621443000,-181.86235485,0.00021413,2]
[425220020,1781621443000,-168.95381407,0.00021413,2]
[425220026,1781621443000,-653.89652808,0.00021413,2]
[425220029,1781621443000,-202.49790031,0.00021413,2]
[425220033,1781621443000,-173.19174453,0.00021413,2]
[425220035,1781621443000,-173.37789107,0.00021413,2]
[425220039,1781621443000,-387.65175018,0.00021413,2]
[425220037,1781621443000,-151.65736965,0.00021413,2]
[425220040,1781621443000,-197.54805644,0.00021413,2]
[425220038,1781621443000,-164.41886724,0.00021413,2]
[425220041,1781621443000,-1188.96257785,0.00021413,2]
[425220043,1781621443000,-166.47317132,0.00021413,2]
[425220044,1781621443000,-290398.97272624,0.00021451,2]
[425220042,1781621443000,-152.71370269,0.00021413,2]
[425220045,1781621443000,-2205.92148571,0.00021451,2]
[425220031,1781621443000,-175.90349229,0.00021413,2]
[425220047,1781621446000,-43145.2481063,0.00021451,2]
[425220057,1781621447000,-18786.68379719,0.00021451,2]
[425220056,1781621447000,-5729.82645751,0.00021451,2]
[425220068,1781621866000,302.0,0.00023203,30]
[425220076,1781622054000,-1056.90563718,0.00011385,13]
[425220136,1781622631000,-2486.87224396,0.000118,5]
[425220135,1781622631000,-8357.05624275,0.000118,5]
[425220133,1781622631000,-300.0,0.00011799,2]
[425220130,1781622631000,-704.0695043,0.000115,2]
[425220134,1781622631000,-4685.67281281,0.000118,5]
[425220131,1781622631000,-500.0,0.000115,2]
[425220132,1781622631000,-165.31470389,0.000115,2]
[425220129,1781622631000,-3685.43523567,0.00011158,2]
[425220154,1781622638000,-220.28,0.00012329,2]
[425220151,1781622638000,-8569.3992802,0.000118,5]
[425220152,1781622638000,-169.12116047,0.00012271,2]
[425220153,1781622638000,-264.34,0.00012329,2]
[425220156,1781622638000,-152.97,0.00012329,2]
[425220155,1781622638000,-183.57,0.00012329,2]
[425220158,1781622638000,-8314.95144693,0.000135,2]
[425220159,1781622638000,-708.16338655,0.000135,2]
[425220157,1781622638000,-764.88,0.00012329,2]
[425220230,1781622643000,-503.34961932,0.00013698,2]
[425220203,1781622643000,-500.0,0.00013698,2]
[425220204,1781622643000,-500.0,0.00013698,2]
[425220208,1781622643000,-504.34082341,0.00013698,2]
[425220212,1781622643000,-503.73505818,0.00013698,2]
[425220211,1781622643000,-500.0,0.00013698,2]
[425220209,1781622643000,-331.39637319,0.00013698,2]
[425220214,1781622643000,-505.01724972,0.00013698,2]
[425220215,1781622643000,-542.41213575,0.00013698,2]
[425220213,1781622643000,-500.0,0.00013698,2]
[425220217,1781622643000,-509.17605939,0.00013698,2]
[425220216,1781622643000,-504.05454065,0.00013698,2]
[425220219,1781622643000,-500.0,0.00013698,2]
[425220202,1781622643000,-513.20765357,0.00013698,2]
[425220210,1781622643000,-505.86681156,0.00013698,2]
[425220201,1781622643000,-500.0,0.00013698,2]
[425220187,1781622643000,-294933.72767328,0.000135,2]
[425220207,1781622643000,-512.00799343,0.00013698,2]
[425220186,1781622643000,-4500.0,0.00012148,2]
[425220188,1781622643000,-516.79742499,0.00013698,2]
[425220194,1781622643000,-1411.577881,0.00013698,2]
[425220192,1781622643000,-500.0,0.00013698,2]
[425220193,1781622643000,-661.15,0.00013698,2]
[425220190,1781622643000,-500.0,0.00013698,2]
[425220199,1781622643000,-500.0,0.00013698,2]
[425220191,1781622643000,-500.0,0.00013698,2]
[425220195,1781622643000,-509.24106111,0.00013698,2]
[425220196,1781622643000,-500.0,0.00013698,2]
[425220205,1781622643000,-503.39194477,0.00013698,2]
[425220206,1781622643000,-500.0,0.00013698,2]
[425220197,1781622643000,-500.0,0.00013698,2]
[425220198,1781622643000,-500.0,0.00013698,2]
[425220189,1781622643000,-500.0,0.00013698,2]
[425220229,1781622643000,-500.0,0.00013698,2]
[425220200,1781622643000,-503.75127736,0.00013698,2]
[425220222,1781622643000,-502.53962074,0.00013698,2]
[425220238,1781622643000,-503.94227161,0.00013698,2]
[425220242,1781622643000,-500.0,0.00013698,2]
[425220244,1781622643000,-519.8931542,0.00013698,2]
[425220247,1781622643000,-504.77496938,0.00013698,2]
[425220249,1781622643000,-500.0,0.00013698,2]
[425220245,1781622643000,-502.85001443,0.00013698,2]
[425220241,1781622643000,-504.40961376,0.00013698,2]
[425220248,1781622643000,-501.50355763,0.00013698,2]
[425220251,1781622643000,-511.36746069,0.00013698,2]
[425220252,1781622643000,-501.02795388,0.00013698,2]
[425220250,1781622643000,-504.54315886,0.00013698,2]
[425220254,1781622643000,-505.0280382,0.00013698,2]
[425220255,1781622643000,-500.0,0.00013698,2]
[425220253,1781622643000,-501.91593432,0.00013698,2]
[425220246,1781622643000,-507.95636194,0.00013698,2]
[425220240,1781622643000,-500.0,0.00013698,2]
[425220228,1781622643000,-500.0,0.00013698,2]
[425220237,1781622643000,-503.08389427,0.00013698,2]
[425220239,1781622643000,-500.0,0.00013698,2]
[425220220,1781622643000,-501.58060889,0.00013698,2]
[425220226,1781622643000,-500.0,0.00013698,2]
[425220221,1781622643000,-500.0,0.00013698,2]
[425220218,1781622643000,-500.0,0.00013698,2]
[425220227,1781622643000,-500.0,0.00013698,2]
[425220225,1781622643000,-500.0,0.00013698,2]
[425220223,1781622643000,-573.12090402,0.00013698,2]
[425220231,1781622643000,-506.06445849,0.00013698,2]
[425220233,1781622643000,-501.98708079,0.00013698,2]
[425220243,1781622643000,-503.91989015,0.00013698,2]
[425220232,1781622643000,-500.0,0.00013698,2]
[425220235,1781622643000,-500.0,0.00013698,2]
[425220234,1781622643000,-503.9441135,0.00013698,2]
[425220236,1781622643000,-503.31560457,0.00013698,2]
[425220224,1781622643000,-504.90753921,0.00013698,2]
[425220305,1781622644000,-500.0,0.00013698,2]
[425220298,1781622644000,-500.0,0.00013698,2]
[425220296,1781622644000,-500.0,0.00013698,2]
[425220288,1781622644000,-500.0,0.00013698,2]
[425220289,1781622644000,-500.0,0.00013698,2]
[425220283,1781622644000,-500.0,0.00013698,2]
[425220291,1781622644000,-500.0,0.00013698,2]
[425220287,1781622644000,-500.0,0.00013698,2]
[425220295,1781622644000,-500.0,0.00013698,2]
[425220286,1781622644000,-500.0,0.00013698,2]
[425220308,1781622644000,-500.0,0.00013698,2]
[425220292,1781622644000,-500.0,0.00013698,2]
[425220297,1781622644000,-513.66,0.00013698,2]
[425220307,1781622644000,-500.0,0.00013698,2]
[425220299,1781622644000,-500.0,0.00013698,2]
[425220303,1781622644000,-500.0,0.00013698,2]
[425220306,1781622644000,-500.0,0.00013698,2]
[425220304,1781622644000,-500.0,0.00013698,2]
[425220301,1781622644000,-500.0,0.00013698,2]
[425220302,1781622644000,-500.0,0.00013698,2]
[425220294,1781622644000,-500.0,0.00013698,2]
[425220310,1781622644000,-500.0,0.00013698,2]
[425220321,1781622644000,-500.0,0.00013698,2]
[425220320,1781622644000,-502.30019444,0.00013698,2]
[425220312,1781622644000,-507.04,0.00013698,2]
[425220313,1781622644000,-504.09274401,0.00013698,2]
[425220300,1781622644000,-507.12650838,0.00013698,2]
[425220285,1781622644000,-500.0,0.00013698,2]
[425220267,1781622644000,-500.0,0.00013698,2]
[425220284,1781622644000,-500.0,0.00013698,2]
[425220256,1781622644000,-506.14055939,0.00013698,2]
[425220268,1781622644000,-500.95110591,0.00013698,2]
[425220272,1781622644000,-504.13608598,0.00013698,2]
[425220281,1781622644000,-4752.23,0.00013698,2]
[425220275,1781622644000,-501.88157903,0.00013698,2]
[425220282,1781622644000,-500.0,0.00013698,2]
[425220258,1781622644000,-500.0,0.00013698,2]
[425220263,1781622644000,-500.0,0.00013698,2]
[425220265,1781622644000,-516.4598477,0.00013698,2]
[425220266,1781622644000,-504.73346964,0.00013698,2]
[425220279,1781622644000,-500.0,0.00013698,2]
[425220257,1781622644000,-504.46590476,0.00013698,2]
[425220274,1781622644000,-504.54991382,0.00013698,2]
[425220270,1781622644000,-1002.31030109,0.00013698,2]
[425220264,1781622644000,-503.39625828,0.00013698,2]
[425220273,1781622644000,-500.27655207,0.00013698,2]
[425220276,1781622644000,-550.25349076,0.00013698,2]
[425220278,1781622644000,-500.0,0.00013698,2]
[425220262,1781622644000,-516.73274338,0.00013698,2]
[425220277,1781622644000,-500.0,0.00013698,2]
[425220309,1781622644000,-500.0,0.00013698,2]
[425220271,1781622644000,-502.87877282,0.00013698,2]
[425220280,1781622644000,-500.0,0.00013698,2]
[425220260,1781622644000,-556.89997723,0.00013698,2]
[425220259,1781622644000,-500.0,0.00013698,2]
[425220269,1781622644000,-503.90433487,0.00013698,2]
[425220261,1781622644000,-509.05453911,0.00013698,2]
[425220293,1781622644000,-500.0,0.00013698,2]
[425220322,1781622644000,-506.411136,0.00013698,2]
[425220290,1781622644000,-500.0,0.00013698,2]
[425220314,1781622644000,-500.0,0.00013698,2]
[425220351,1781622644000,-661.15,0.00013972,2]
[425220353,1781622644000,-504.15858194,0.00013972,2]
[425220347,1781622644000,-500.0,0.00013972,2]
[425220352,1781622644000,-504.28027521,0.00013972,2]
[425220348,1781622644000,-500.0,0.00013972,2]
[425220349,1781622644000,-500.0,0.00013972,2]
[425220355,1781622644000,-500.0,0.00013972,2]
[425220361,1781622644000,-500.0,0.00013972,2]
[425220357,1781622644000,-500.0,0.00013972,2]
[425220358,1781622644000,-508.8678933,0.00013972,2]
[425220360,1781622644000,-514.10356282,0.00013972,2]
[425220359,1781622644000,-500.0,0.00013972,2]
[425220356,1781622644000,-502.14545042,0.00013972,2]
[425220350,1781622644000,-500.0,0.00013972,2]
[425220364,1781622644000,-500.0,0.00013972,2]
[425220366,1781622644000,-507.1406759,0.00013972,2]
[425220363,1781622644000,-500.0,0.00013972,2]
[425220367,1781622644000,-500.0,0.00013972,2]
[425220368,1781622644000,-510.11414754,0.00013972,2]
[425220370,1781622644000,-207.07483067,0.00013972,2]
[425220369,1781622644000,-506.9529322,0.00013972,2]
[425220371,1781622644000,-500.0,0.00013972,2]
[425220373,1781622644000,-610.37972386,0.00013972,2]
[425220374,1781622644000,-200.36449003,0.00013972,2]
[425220376,1781622644000,-500.0,0.00013972,2]
[425220372,1781622644000,-647.64106642,0.00013972,2]
[425220375,1781622644000,-500.0,0.00013972,2]
[425220311,1781622644000,-500.0,0.00013698,2]
[425220365,1781622644000,-517.241666,0.00013972,2]
[425220346,1781622644000,-510.5442523,0.00013698,2]
[425220362,1781622644000,-502.15885033,0.00013972,2]
[425220354,1781622644000,-506.89247805,0.00013972,2]
[425220345,1781622644000,-500.0,0.00013698,2]
[425220316,1781622644000,-503.63701262,0.00013698,2]
[425220318,1781622644000,-503.17552834,0.00013698,2]
[425220315,1781622644000,-500.0,0.00013698,2]
[425220317,1781622644000,-500.0,0.00013698,2]
[425220323,1781622644000,-502.55540965,0.00013698,2]
[425220327,1781622644000,-509.54445485,0.00013698,2]
[425220333,1781622644000,-500.0,0.00013698,2]
[425220330,1781622644000,-815.69,0.00013698,2]
[425220328,1781622644000,-500.0,0.00013698,2]
[425220326,1781622644000,-500.0,0.00013698,2]
[425220331,1781622644000,-500.0,0.00013698,2]
[425220329,1781622644000,-500.0,0.00013698,2]
[425220324,1781622644000,-500.0,0.00013698,2]
[425220319,1781622644000,-307.29650194,0.00013698,2]
[425220332,1781622644000,-500.0,0.00013698,2]
[425220325,1781622644000,-500.6401752,0.00013698,2]
[425220344,1781622644000,-500.0,0.00013698,2]
[425220340,1781622644000,-505.55078738,0.00013698,2]
[425220338,1781622644000,-500.72591955,0.00013698,2]
[425220341,1781622644000,-515.2534934,0.00013698,2]
[425220339,1781622644000,-151.0,0.00013698,2]
[425220343,1781622644000,-500.58833802,0.00013698,2]
[425220336,1781622644000,-505.36796925,0.00013698,2]
[425220337,1781622644000,-502.10631816,0.00013698,2]
[425220334,1781622644000,-501.19497744,0.00013698,2]
[425220335,1781622644000,-500.0,0.00013698,2]
[425220342,1781622644000,-500.0,0.00013698,2]
[425220411,1781622645000,-151.0,0.00013972,2]
[425220417,1781622645000,-500.0,0.00013972,2]
[425220427,1781622645000,-500.0,0.00014246,2]
[425220426,1781622645000,-1211.26011954,0.00014175,2]
[425220407,1781622645000,-500.0,0.00013972,2]
[425220418,1781622645000,-815.69,0.00013972,2]
[425220408,1781622645000,-507.04,0.00013972,2]
[425220414,1781622645000,-500.0,0.00013972,2]
[425220412,1781622645000,-500.0,0.00013972,2]
[425220410,1781622645000,-500.0,0.00013972,2]
[425220413,1781622645000,-500.0,0.00013972,2]
[425220429,1781622645000,-500.0,0.00014246,2]
[425220428,1781622645000,-500.0,0.00014246,2]
[425220419,1781622645000,-500.0,0.00013972,2]
[425220425,1781622645000,-166.222367,0.00014023,2]
[425220421,1781622645000,-500.0,0.00013972,2]
[425220423,1781622645000,-500.0,0.00013972,2]
[425220422,1781622645000,-500.0,0.00013972,2]
[425220424,1781622645000,-500.0,0.00013972,2]
[425220434,1781622645000,-444.22488253,0.00014246,2]
[425220441,1781622645000,-500.0,0.00014246,2]
[425220432,1781622645000,-500.0,0.00014246,2]
[425220430,1781622645000,-661.15,0.00014246,2]
[425220431,1781622645000,-500.0,0.00014246,2]
[425220436,1781622645000,-500.0,0.00014246,2]
[425220440,1781622645000,-500.0,0.00014246,2]
[425220433,1781622645000,-500.0,0.00014246,2]
[425220406,1781622645000,-500.0,0.00013972,2]
[425220420,1781622645000,-500.0,0.00013972,2]
[425220409,1781622645000,-500.0,0.00013972,2]
[425220378,1781622645000,-500.0,0.00013972,2]
[425220416,1781622645000,-500.0,0.00013972,2]
[425220435,1781622645000,-500.0,0.00014246,2]
[425220377,1781622645000,-500.0,0.00013972,2]
[425220379,1781622645000,-500.0,0.00013972,2]
[425220381,1781622645000,-4752.23,0.00013972,2]
[425220382,1781622645000,-500.0,0.00013972,2]
[425220386,1781622645000,-500.0,0.00013972,2]
[425220384,1781622645000,-500.0,0.00013972,2]
[425220388,1781622645000,-500.0,0.00013972,2]
[425220387,1781622645000,-500.0,0.00013972,2]
[425220380,1781622645000,-500.0,0.00013972,2]
[425220383,1781622645000,-500.0,0.00013972,2]
[425220390,1781622645000,-500.0,0.00013972,2]
[425220385,1781622645000,-500.0,0.00013972,2]
[425220389,1781622645000,-500.0,0.00013972,2]
[425220391,1781622645000,-500.0,0.00013972,2]
[425220393,1781622645000,-500.0,0.00013972,2]
[425220403,1781622645000,-500.0,0.00013972,2]
[425220392,1781622645000,-500.0,0.00013972,2]
[425220395,1781622645000,-500.0,0.00013972,2]
[425220394,1781622645000,-500.0,0.00013972,2]
[425220402,1781622645000,-500.0,0.00013972,2]
[425220397,1781622645000,-513.66,0.00013972,2]
[425220396,1781622645000,-500.0,0.00013972,2]
[425220401,1781622645000,-500.0,0.00013972,2]
[425220400,1781622645000,-500.0,0.00013972,2]
[425220399,1781622645000,-500.0,0.00013972,2]
[425220398,1781622645000,-500.0,0.00013972,2]
[425220405,1781622645000,-500.0,0.00013972,2]
[425220415,1781622645000,-500.0,0.00013972,2]
[425220404,1781622645000,-500.0,0.00013972,2]
[425220437,1781622645000,-500.0,0.00014246,2]
[425220492,1781622645000,-500.0,0.0001452,2]
[425220438,1781622645000,-500.0,0.00014246,2]
[425220470,1781622645000,-500.0,0.00014246,2]
[425220480,1781622645000,-500.0,0.00014246,2]
[425220472,1781622645000,-500.0,0.00014246,2]
[425220474,1781622645000,-500.0,0.00014246,2]
[425220476,1781622645000,-500.0,0.00014246,2]
[425220475,1781622645000,-500.0,0.00014246,2]
[425220481,1781622645000,-500.0,0.00014246,2]
[425220486,1781622645000,-500.0,0.0001452,2]
[425220482,1781622645000,-500.0,0.00014246,2]
[425220485,1781622645000,-500.0,0.00014246,2]
[425220483,1781622645000,-500.0,0.00014246,2]
[425220484,1781622645000,-500.0,0.00014246,2]
[425220494,1781622645000,-500.0,0.0001452,2]
[425220471,1781622645000,-507.04,0.00014246,2]
[425220489,1781622645000,-661.15,0.0001452,2]
[425220488,1781622645000,-500.0,0.0001452,2]
[425220493,1781622645000,-500.0,0.0001452,2]
[425220487,1781622645000,-500.0,0.0001452,2]
[425220496,1781622645000,-500.0,0.0001452,2]
[425220495,1781622645000,-500.0,0.0001452,2]
[425220497,1781622645000,-500.0,0.0001452,2]
[425220498,1781622645000,-500.0,0.0001452,2]
[425220439,1781622645000,-500.0,0.00014246,2]
[425220503,1781622645000,-500.0,0.0001452,2]
[425220502,1781622645000,-500.0,0.0001452,2]
[425220499,1781622645000,-500.0,0.0001452,2]
[425220501,1781622645000,-500.0,0.0001452,2]
[425220504,1781622645000,-4752.23,0.0001452,2]
[425220490,1781622645000,-280.67436657,0.0001452,2]
[425220473,1781622645000,-500.0,0.00014246,2]
[425220500,1781622645000,-500.0,0.0001452,2]
[425220478,1781622645000,-259.49954298,0.00014246,2]
[425220479,1781622645000,-815.69,0.00014246,2]
[425220443,1781622645000,-500.0,0.00014246,2]
[425220442,1781622645000,-500.0,0.00014246,2]
[425220452,1781622645000,-500.0,0.00014246,2]
[425220453,1781622645000,-500.0,0.00014246,2]
[425220451,1781622645000,-500.0,0.00014246,2]
[425220447,1781622645000,-500.0,0.00014246,2]
[425220454,1781622645000,-500.0,0.00014246,2]
[425220448,1781622645000,-500.0,0.00014246,2]
[425220444,1781622645000,-500.0,0.00014246,2]
[425220446,1781622645000,-500.0,0.00014246,2]
[425220450,1781622645000,-500.0,0.00014246,2]
[425220449,1781622645000,-500.0,0.00014246,2]
[425220455,1781622645000,-500.0,0.00014246,2]
[425220456,1781622645000,-500.0,0.00014246,2]
[425220445,1781622645000,-4752.23,0.00014246,2]
[425220466,1781622645000,-500.0,0.00014246,2]
[425220457,1781622645000,-500.0,0.00014246,2]
[425220469,1781622645000,-500.0,0.00014246,2]
[425220462,1781622645000,-500.0,0.00014246,2]
[425220464,1781622645000,-500.0,0.00014246,2]
[425220461,1781622645000,-500.0,0.00014246,2]
[425220460,1781622645000,-513.66,0.00014246,2]
[425220468,1781622645000,-500.0,0.00014246,2]
[425220477,1781622645000,-500.0,0.00014246,2]
[425220463,1781622645000,-500.0,0.00014246,2]
[425220467,1781622645000,-500.0,0.00014246,2]
[425220465,1781622645000,-500.0,0.00014246,2]
[425220459,1781622645000,-205.30126007,0.00014246,2]
[425220458,1781622645000,-500.0,0.00014246,2]
[425220556,1781622646000,-500.0,0.00014794,2]
[425220546,1781622646000,-500.0,0.0001452,2]
[425220542,1781622646000,-261.9545044,0.0001452,2]
[425220541,1781622646000,-500.0,0.0001452,2]
[425220539,1781622646000,-500.0,0.0001452,2]
[425220536,1781622646000,-500.0,0.0001452,2]
[425220538,1781622646000,-500.0,0.0001452,2]
[425220545,1781622646000,-500.0,0.0001452,2]
[425220544,1781622646000,-500.0,0.0001452,2]
[425220540,1781622646000,-815.69,0.0001452,2]
[425220543,1781622646000,-500.0,0.0001452,2]
[425220552,1781622646000,-661.15,0.00014794,2]
[425220555,1781622646000,-500.0,0.00014794,2]